Cogmind - Beta 17 @@@ ROGUE MODE // 2026.07.19 @ 19:36:22 // AFD2019/Pay2Buy Player: obl-vn Result: Self-destructed Performance ------------- Evolutions (5) 2500 Regions Visited (9) 1800 Robots Destroyed (258) 1290 Value Destroyed (10213) 10213 Prototype IDs (9) 180 Alien Tech Used (0) 0 Bonus (7098) 7098 TOTAL SCORE: 23081 Bonus ------- Triggered High Security 500 High Alert Combat Kills 5954 Follower Combat Kills 144 Entered DSFs 500 Cogmind --------- Core Integrity 991/1000 Matter 250/300 Energy 179/415 System Corruption 0% Temperature Cool (0) Movement Rolling (115) Ox1 Location -5/Factory Parts ------- > --- POWER (3) -------- Cold Fusion Reactor Neutrino Core > --- PROPULSION (5) --- Myomer Leg Biometal Leg Overtuned Scrapsphere Armored Huge Wheel > --- UTILITY (7) ------ Advanced Cooling System Force Field > --- WEAPON (2) ------- Cooled Phase Cannon Power Maul > --- INVENTORY (10) --- Fusion Compressor Experimental Matter Compressor (20) Launcher Loader Force Field Linear Accelerator Heavy Rocket Launcher Peak State ------------ > --- POWER ------------ F-cell Engine Antimatter Reactor > --- PROPULSION ------- Armored Medium Treads Armored Medium Treads Heavy Treads Enhanced Armored Leg > --- UTILITY ---------- Advanced Cooling System Matter Filter Layered Heavy Armor Plating Force Field Long-range Tractor Beam > --- WEAPON ----------- Heavy Rocket Launcher Heavy Rocket Launcher > --- INVENTORY -------- Neutrino Core Experimental Matter Compressor Force Field Dispersion Rifle Cooled Phase Cannon Power Maul [Rating: 88] Favorites ----------- Power F-cell Engine Engine F-cell Engine Power Core Neutrino Core Reactor Antimatter Reactor Propulsion Armored Medium Treads Treads Armored Medium Treads Leg Enhanced Armored Leg Wheel Overtuned Scrapsphere Utility Hardened Medium Armor Plating Device Force Field Processor Enhanced Optical Array Protection Hardened Medium Armor Plating Weapon Heavy Rocket Launcher Energy Gun Force Rifle Energy Cannon Cooled Phase Cannon Ballistic Gun Shotgun Ballistic Cannon Linear Accelerator Launcher Heavy Rocket Launcher Impact Weapon Power Maul Build | -11 -10 -10 -10 -9 -8 -7 -7 -6 -5 ------- Run | Yrd Mat Min Exi Min Mat Fac DSF Fac Fac Slots Evolved 10 | . . . . . 4 2 . 2 2 Power 2 | . . . . . . 1 . . 1 Propulsion 3 | . . . . . 2 . . 1 . Utility 5 | . . . . . 2 1 . 1 1 Weapon . | . . . . . . . . . . Parts Attached 42 | . 3 . . 5 5 1 6 19 3 Power 5 | . . . . . . 1 1 2 1 Engine 2 | . . . . . . 1 1 . . Core 1 | . . . . . . . . 1 . Reactor 2 | . . . . . . . . 1 1 Propulsion 10 | . 1 . . 1 . . . 8 . Treads 8 | . 1 . . 1 . . . 6 . Leg 2 | . . . . . . . . 2 . Wheel . | . . . . . . . . . . Hover . | . . . . . . . . . . Flight . | . . . . . . . . . . Utility 16 | . . . . 2 3 . 3 7 1 Device 12 | . . . . 1 2 . 2 6 1 Storage . | . . . . . . . . . . Processor 1 | . . . . . . . 1 . . Hackware . | . . . . . . . . . . Protection 3 | . . . . 1 1 . . 1 . Artifact . | . . . . . . . . . . Weapon 11 | . 2 . . 2 2 . 2 2 1 Energy Gun 2 | . . . . . . . 2 . . Energy Cannon 1 | . . . . . . . . . 1 Ballistic Gun 2 | . 1 . . 1 . . . . . Ballistic Cannon . | . . . . . . . . . . Launcher 5 | . 1 . . 1 1 . . 2 . Special Weapon . | . . . . . . . . . . Impact Weapon 1 | . . . . . 1 . . . . Slashing Weapon . | . . . . . . . . . . Piercing Weapon . | . . . . . . . . . . Special Melee Weapon . | . . . . . . . . . . Unidentified Prototypes 1 | . . . . 1 . . . . . Parts Lost 26 | . 1 . . . 1 . . 24 . Power 3 | . . . . . . . . 3 . Propulsion 4 | . . . . . . . . 4 . Utility 12 | . 1 . . . . . . 11 . Weapon 7 | . . . . . 1 . . 6 . Highest Loss Streak 14 | . 1 . . . 1 . . 14 . To Critical Strikes 1 | . . . . . . . . 1 . Average Backups 6 | . . 2 2 3 6 10 9 8 6 Power . | . . . . . . . 1 . 1 Propulsion . | . . . . . . . . . . Utility 2 | . . 1 1 1 3 4 4 3 3 Weapon 2 | . . 1 1 1 2 5 3 3 2 Tool/Special . | . . . . . . . . . . Unused Backups 5 | . . . . . . . . 4 1 Power . | . . . . . . . . . . Propulsion . | . . . . . . . . . . Utility 3 | . . . . . . . . 2 1 Weapon 2 | . . . . . . . . 2 . Tool/Special . | . . . . . . . . . . Average Slot Usage (%) 94 | . 98 100 100 100 99 98 100 91 52 Engine 12 | . 14 14 14 14 9 14 15 11 . Treads 28 | . 27 28 28 28 35 30 30 30 . Device 18 | . 13 14 14 14 17 22 20 22 10 Processor 1 | . . . . . . . 1 2 . Protection 11 | . 12 14 14 14 17 15 15 7 . Ballistic Gun 9 | . 27 28 28 25 1 . . . . Launcher 7 | . . . . 2 12 7 12 11 . Peak Build Rating 88 | 13 15 15 15 22 32 49 56 88 65 Average Rating 45 | 13 14 15 15 15 30 48 50 72 59 On Entrance 21 | . 13 15 15 15 15 32 49 50 11 Avg Prop Armor Cover (%) 9 | . . . . 8 . . . 2 11 Naked Turns . | . . . . . . . . . . Heaviest Build 75 | 16 23 23 23 24 40 58 62 75 49 Greatest Support 130 | 40 40 40 40 40 80 80 80 130 53 Greatest Overweight (x) 1 | . . . . 1 . . . . 1 Average Overweight (x) . | . . . . . . . . . . Largest Inventory Capacity 10 | 10 10 10 10 10 10 10 10 10 10 Average Capacity 10 | 10 10 10 10 10 10 10 10 10 10 Most Carried 10 | . 2 2 2 4 7 10 10 10 10 Average Carried 6 | . . 2 2 3 6 9 9 9 7 Final Capacity 10 | 10 10 10 10 10 10 10 10 10 10 Final Carried 10 | . 2 2 2 4 7 10 10 10 7 Class Distribution -------------------- 100% | Mutant Dominant Class ---------------- Mutant | -10/Materials Mutant | -10/Mines Mutant | -10/Exiles Mutant | -9/Mines Mutant | -8/Materials Mutant | -7/Factory Mutant | -7/DSF Mutant | -6/Factory Mutant | -5/Factory Resources | -11 -10 -10 -10 -9 -8 -7 -7 -6 -5 ----------- Run | Yrd Mat Min Exi Min Mat Fac DSF Fac Fac Matter Collected 5487 | 106 667 . . 149 792 . 333 3440 . Remotely 3534 | . . . . . 391 . 165 2978 . Salvage Created 6254 | 106 716 . . 39 1150 . 317 3926 . Parts . | . . . . . . . . . . Haulers Intercepted 3 | . . . . . 3 . . . . Recyclers Shooed . | . . . . . . . . . . Parts Field Recycled . | . . . . . . . . . . Retrieved Matter . | . . . . . . . . . . Parts Self-Destructed . | . . . . . . . . . . Prevented . | . . . . . . . . . . Parts Restored . | . . . . . . . . . . Kills | -11 -10 -10 -10 -9 -8 -7 -7 -6 -5 ------- Run | Yrd Mat Min Exi Min Mat Fac DSF Fac Fac Combat Hostiles Destroyed 200 | . 18 . . 3 34 . 8 137 . Melee 4 | . . . . . 2 . . 2 . Guns 19 | . 15 . . . . . 2 2 . AOE 166 | . 3 . . 3 27 . 6 127 . Classes Destroyed 18 | 2 5 . . . 7 . 2 2 . Worker 18 | . 6 . . . 2 . . 10 . Builder 23 | . 2 . . 2 7 . . 12 . Tunneler 6 | 1 1 . . . . . . 3 1 Hauler 3 | . . . . . 3 . . . . Recycler 8 | 1 . . . . 1 . . 6 . Mechanic 9 | . . . . . 1 . . 8 . Operator 1 | . . . . . . . . 1 . Watcher 2 | . 2 . . . . . . . . Swarmer 17 | . 3 . . 3 2 . 3 6 . Saboteur 6 | . . . . . . . . 6 . Grunt 110 | . 15 . . . 22 . . 73 . Brawler 11 | . . . . . 1 . . 10 . Duelist 16 | . . . . . 5 . . 11 . Protector 9 | . . . . . 3 . . 6 . Sentry 2 | . . . . . 1 . . 1 . Specialist 3 | . . . . . . . 3 . . Hunter 16 | . . . . . 1 . 1 14 . Programmer 11 | . . . . . . . 1 10 . Best Kill Streak 37 | 2 5 . . 4 21 . 3 37 1 Combat Bots Only 35 | . 5 . . 3 13 . 3 35 . Max Kills in Single Turn 5 | 1 2 . . 2 5 . 3 5 1 Gunslinging . | . . . . . . . . . . Exploded 5 | . 2 . . 2 3 . 3 5 . Melee 1 | . . . . . 1 . . 1 . Uniques/NPCs Destroyed . | . . . . . . . . . . Combat | -11 -10 -10 -10 -9 -8 -7 -7 -6 -5 -------- Run | Yrd Mat Min Exi Min Mat Fac DSF Fac Fac Hostile Shots Fired 908 | . 62 . . 1 65 . 57 713 10 Missed 298 | . 11 . . . 21 . 23 239 4 Hits 610 | . 51 . . 1 44 . 34 474 6 Melee 42 | . . . . . 1 . . 41 . Projectile 568 | . 51 . . 1 43 . 34 433 6 Critical Strikes 28 | . 1 . . . 2 . 2 23 . Damage Taken 8016 | . 433 . . 12 536 . 319 6656 60 Core 578 | . 57 . . . 36 . 9 467 9 Absorbed by Shields 2869 | . 153 . . 6 181 . 338 2126 65 Ignored by Resistances 17 | . . . . . 17 . . . . Core Remaining (%) 82 | 100 . . . 77 93 . 98 45 . Volleys Fired 316 | 4 58 . . 3 33 . 21 192 5 Largest 2 | 2 2 . . 2 2 . 2 2 1 Hottest 160 | 46 46 . . 46 72 . 160 119 40 Shots Fired 485 | 8 114 . . 4 54 . 37 263 5 Gun 168 | 8 112 . . 2 . . 14 32 . Cannon 5 | . . . . . . . . . 5 Launcher 312 | . 2 . . 2 54 . 23 231 . Special . | . . . . . . . . . . Kinetic 122 | 8 112 . . 2 . . . . . Thermal 51 | . . . . . . . 14 32 5 Explosive 312 | . 2 . . 2 54 . 23 231 . Electromagnetic . | . . . . . . . . . . Robot Hit Streak 9 | 4 9 . . 3 8 . 6 8 6 Robot Miss Streak 8 | 2 4 . . 1 3 . 4 8 . Penetration Max . | . . . . . . . . . . Secondary Targets 1 | . 1 . . . . . . . . Max Gunslinging Chain 1 | . 1 . . . . . . . . Shots Hit Robots 286 | 5 83 . . 1 36 . 14 145 2 Core Hits 642 | 3 53 . . 5 100 . 17 464 . Critical Kills 2 | . . . . . 1 . . 1 . Critical Parts Destroyed 13 | . 2 . . . 3 . . 8 . Critical Strikes 16 | . 2 . . . 4 . . 10 . Destroy 4 | . 2 . . . . . . 2 . Smash 12 | . . . . . 4 . . 8 . Melee Attacks 49 | . . . . . 14 . . 35 . Impact 49 | . . . . . 14 . . 35 . Slashing . | . . . . . . . . . . Piercing . | . . . . . . . . . . Sneak Attacks 10 | . . . . . 1 . . 9 . Combat Hostiles . | . . . . . . . . . . Follow-up Attacks . | . . . . . . . . . . Damage Inflicted 36814 | 95 1450 . . 240 4944 . 1348 28588 149 Guns 2070 | 95 1286 . . 12 . . 205 472 . Cannons 69 | . . . . . . . . . 69 Explosions 32491 | . 164 . . 228 4433 . 1143 26443 80 Melee 2169 | . . . . . 511 . . 1658 . Ramming 15 | . . . . . . . . 15 . Kinetic 1393 | 95 1286 . . 12 . . . . . Thermal 826 | . . . . . . . 205 472 149 Explosive 32411 | . 164 . . 228 4433 . 1143 26443 . Electromagnetic . | . . . . . . . . . . Impact 2169 | . . . . . 511 . . 1658 . Slashing . | . . . . . . . . . . Piercing . | . . . . . . . . . . Highest Corruption 3 | . . . . . . . . 3 . Average Corruption 1 | . . . . . . . . 1 . Corruption Purged 3 | . . . . . . . . 3 . Corruption Blocked . | . . . . . . . . . . Effects 17 | . . . . . . . . 17 . Message Errors 4 | . . . . . . . . 4 . Matter Fused 4 | . . . . . . . . 4 . Heat Flow Errors 4 | . . . . . . . . 4 . Energy Discharges 2 | . . . . . . . . 2 . Parts Rejected 1 | . . . . . . . . 1 . Data Loss (minor) 1 | . . . . . . . . 1 . Data Loss (major) 1 | . . . . . . . . 1 . Overload Shots . | . . . . . . . . . . Overflow Damage 1808 | . . . . . 392 . . 1376 40 Projectiles . | . . . . . . . . . . Explosions 717 | . . . . . 77 . . 600 40 Melee 1091 | . . . . . 315 . . 776 . Knockbacks 6 | . . . . . 1 . . 5 . Impact 6 | . . . . . 1 . . 5 . Kinetic . | . . . . . . . . . . Secondary . | . . . . . . . . . . Self-Inflicted Damage 450 | . . . . . 43 . 37 349 21 Shots 22 | . . . . . 3 . 1 17 1 Rammed 3 | . . . . . . . . 3 . Targets Rammed 3 | . . . . . . . . 3 . Kicked . | . . . . . . . . . . Crushed . | . . . . . . . . . . Highest Temperature 376 | . 44 . . . 236 . 197 376 . Average Temperature 104 | . 10 . . . 93 . 93 138 . Received Heat Transfer 2080 | . 224 . . . 230 . . 1626 . Effects 1 | . . . . . 1 . . . . Interference 1 | . . . . . 1 . . . . Siege Activations . | . . . . . . . . . . Martial Activations . | . . . . . . . . . . Shielding Activations . | . . . . . . . . . . Robots Disrupted . | . . . . . . . . . . Combat Hostiles . | . . . . . . . . . . Robots Corrupted 14 | . . . . . 6 . . 8 . Combat Hostiles 10 | . . . . . 5 . . 5 . Parts Fried . | . . . . . . . . . . Impact Corruptions 31 | . . . . . 9 . . 22 . Robots Melted . | . . . . . . . . . . Combat Hostiles . | . . . . . . . . . . Parts Melted . | . . . . . . . . . . Heat Transferred 1086 | . . . . . . . 296 666 124 Parts Sabotaged 3 | . . . . . . . . 3 . Parts Stolen . | . . . . . . . . . . Parts Stripped . | . . . . . . . . . . Power Chain Reactions . | . . . . . . . . . . Alert | -11 -10 -10 -10 -9 -8 -7 -7 -6 -5 ------- Run | Yrd Mat Min Exi Min Mat Fac DSF Fac Fac Maximum Alert Level 5 | . 1 . . . 4 2 3 5 5 Low Security (%) 32 | 100 94 100 . 100 11 . . . . Level 1 7 | . 5 . . . 5 . 17 8 . Level 2 21 | . . . . . 45 100 81 16 . Level 3 6 | . . . . . 33 . . 8 . Level 4 7 | . . . . . 3 . . 16 . Level 5 14 | . . . . . . . . 27 100 High Security 10 | . . . . . . . . 23 . Max Security . | . . . . . . . . . . Sterilizations 2 | . . . . . . . 1 1 . Peak Influence 3817 | 10 237 22 . 120 1114 491 712 3817 2093 Initial 1864 | . . 22 . . 2 491 326 373 1864 Average 876 | 1 55 1 . 27 645 479 477 1584 1997 Influence Increases 7451 | 10 675 . . 125 1513 5 386 4468 269 Destroy 0b10 Robot/C 3940 | . 360 . . 80 720 . 160 2620 . Destroy 0b10 Robot/NC 405 | 10 55 . . 10 85 . 10 230 5 Destroy Leader 700 | . 94 . . 10 136 . 40 420 . Allied During Kill 58 | . . . . 14 44 . . . . Successful Hack 9 | . . . . . . 5 . 4 . Select Force Hacks 200 | . 100 . . . 50 . . 50 . Disable Machine 705 | . 45 . . . 105 . 15 360 180 Anti-Garrison Action 300 | . . . . . 150 . . 150 . Destroy Structure 954 | . 6 . . 11 193 . 101 559 84 Lose Combat Pursuer 180 | . 15 . . . 30 . 60 75 . Influence Decreases 5418 | 10 617 58 . 117 440 620 140 1373 2043 Entered New Map 3054 | . . 36 . . 6 590 140 339 1943 Time Decay 1527 | 10 350 22 . 117 254 30 . 644 100 Lost Part 260 | . 10 . . . 10 . . 240 . Lost Ally 20 | . . . . . 20 . . . . Purge Threat 557 | . 257 . . . 150 . . 150 . Squads Dispatched 61 | . 7 . . . 10 . 2 42 . Investigation 11 | . 6 . . . 3 . . 2 . Extermination 3 | . . . . . . . . 3 . Reinforcement 11 | . 1 . . . 2 . 2 6 . Assault 33 | . . . . . 4 . . 29 . Garrison 3 | . . . . . 1 . . 2 . Intercept . | . . . . . . . . . . Searches Triggered . | . . . . . . . . . . Construction Impeded 5 | . . . . . 1 . . 4 . Haulers Reinforced 1 | . . . . . . . . 1 . Active Scanning Responses . | . . . . . . . . . . Cargo Convoy Interrupts . | . . . . . . . . . . Stealth | -11 -10 -10 -10 -9 -8 -7 -7 -6 -5 --------- Run | Yrd Mat Min Exi Min Mat Fac DSF Fac Fac Distress Signals 4 | . . . . . 1 . . 3 . Communications Jammed . | . . . . . . . . . . Distress Signals . | . . . . . . . . . . Times Spotted 263 | . 25 . . 5 42 . 11 174 6 Peak Tracking Total 15 | . 4 . . 4 9 . 2 15 6 Tactical Retreats 10 | . 1 . . . 1 . 3 5 . Traps | -11 -10 -10 -10 -9 -8 -7 -7 -6 -5 ------- Run | Yrd Mat Min Exi Min Mat Fac DSF Fac Fac Traps Triggered 4 | . 1 . . . . . . 3 . Indirectly . | . . . . . . . . . . Trap Hack Attempts . | . . . . . . . . . . Triggered . | . . . . . . . . . . Disarmed . | . . . . . . . . . . Reprogrammed . | . . . . . . . . . . Reused . | . . . . . . . . . . Traps Extracted . | . . . . . . . . . . Installed . | . . . . . . . . . . Triggered . | . . . . . . . . . . Machines | -11 -10 -10 -10 -9 -8 -7 -7 -6 -5 ---------- Run | Yrd Mat Min Exi Min Mat Fac DSF Fac Fac Machines Disabled 49 | . 3 . . . 8 . 1 25 12 Max in Single Turn 5 | . 2 . . . 2 . 1 5 4 Garrison Access 2 | . . . . . 1 . . 1 . Machines Repaired . | . . . . . . . . . . Machines Dismantled . | . . . . . . . . . . Machines Sabotaged 4 | . 2 . . . 1 . . 1 . Overloaded Fab Kills . | . . . . . . . . . . Hacking | -11 -10 -10 -10 -9 -8 -7 -7 -6 -5 --------- Run | Yrd Mat Min Exi Min Mat Fac DSF Fac Fac Machines Accessed 20 | . 7 . 1 . 3 2 . 6 1 Terminals 17 | . 7 . . . 2 2 . 5 1 Fabricators . | . . . . . . . . . . Repair Stations . | . . . . . . . . . . Recycling Units . | . . . . . . . . . . Scanalyzers 1 | . . . . . 1 . . . . Garrison Access 1 | . . . . . . . . 1 . Total Hacks 63 | . 15 . 23 . 8 2 . 12 3 Successful 41 | . 9 . 23 . 4 1 . 4 . Failed 22 | . 6 . . . 4 1 . 8 3 Catastrophic 4 | . 1 . . . 1 1 . 1 . Database Lockouts . | . . . . . . . . . . Manual 17 | . 7 . . . 3 . . 4 3 Terminals 36 | . 15 . . . 5 2 . 11 3 Fabricators . | . . . . . . . . . . Repair Stations . | . . . . . . . . . . Recycling Units . | . . . . . . . . . . Scanalyzers 3 | . . . . . 3 . . . . Garrison Access 1 | . . . . . . . . 1 . Terminal Hacks 30 | . 3 . 23 . 1 1 . 2 . Record 23 | . . . 23 . . . . . . Open DSF 1 | . . . . . . 1 . . . Unreport Threat 5 | . 3 . . . 1 . . 1 . Locate Traps 1 | . . . . . . . . 1 . Fabricator Hacks . | . . . . . . . . . . Repair Station Hacks . | . . . . . . . . . . Recycling Unit Hacks . | . . . . . . . . . . Scanalyzer 1 | . . . . . 1 . . . . Insert Component 1 | . . . . . 1 . . . . Garrison Access Hacks 1 | . . . . . . . . 1 . Unlock Access 1 | . . . . . . . . 1 . Unauthorized Hacks 9 | . 6 . . . 2 . . 1 . Terminals 9 | . 6 . . . 2 . . 1 . Sabotage 9 | . 6 . . . 2 . . 1 . Fabricators . | . . . . . . . . . . Repair Stations . | . . . . . . . . . . Recycling Units . | . . . . . . . . . . Scanalyzers . | . . . . . . . . . . Garrison Access . | . . . . . . . . . . Data Cores Recovered . | . . . . . . . . . . Used . | . . . . . . . . . . Hacking Detections 12 | . 3 . . . 2 1 . 5 1 Full Trace Events 2 | . . . . . 1 . . 1 . Feedback Events . | . . . . . . . . . . Feedback Blocked . | . . . . . . . . . . Robot Schematics Acquired . | . . . . . . . . . . Robots Built . | . . . . . . . . . . Authchips . | . . . . . . . . . . Time . | . . . . . . . . . . Total Robot Build Rating . | . . . . . . . . . . Part Schematics Acquired . | . . . . . . . . . . Parts Built . | . . . . . . . . . . Authchips . | . . . . . . . . . . Time . | . . . . . . . . . . Total Part Build Rating . | . . . . . . . . . . Part Studies Acquired . | . . . . . . . . . . Parts Repaired . | . . . . . . . . . . Time . | . . . . . . . . . . Parts Recycled . | . . . . . . . . . . Recycled Matter . | . . . . . . . . . . Retrieved Matter . | . . . . . . . . . . Retrieved Components . | . . . . . . . . . . Parts Scanalyzed 1 | . . . . . 1 . . . . Part Schematics Acquired . | . . . . . . . . . . Parts Damaged . | . . . . . . . . . . Bothacking | -11 -10 -10 -10 -9 -8 -7 -7 -6 -5 ------------ Run | Yrd Mat Min Exi Min Mat Fac DSF Fac Fac Used RIF Installer . | . . . . . . . . . . Robots Hacked . | . . . . . . . . . . Non-combat . | . . . . . . . . . . Combat . | . . . . . . . . . . Robot Hacks Applied . | . . . . . . . . . . Relay Couplers Released 1 | . . . . . 1 . . . . Machine Destruction 1 | . . . . . 1 . . . . Fabnet Peak Effective % . | . . . . . . . . . . Robots Rewired . | . . . . . . . . . . Allies Hacked . | . . . . . . . . . . Hacks Repelled . | . . . . . . . . . . Allies | -11 -10 -10 -10 -9 -8 -7 -7 -6 -5 -------- Run | Yrd Mat Min Exi Min Mat Fac DSF Fac Fac Total Allies 3 | . . 3 . . . . . . . Largest Group 3 | . . 3 3 3 2 . . . . Highest-Rated Group 40 | . . 40 40 40 32 . . . . Highest-Rated Ally 16 | . . 16 16 16 16 . . . . Initial Warlord ECA Mod 9 | . . . . . . . . 9 8 Total Orders 3 | . . . . 3 . . . . . STAY 2 | . . . . 2 . . . . . FOLLOW 1 | . . . . 1 . . . . . Ally Attacks 29 | . . . . 9 20 . . . . Total Damage 300 | . . . . 63 237 . . . . Kills 7 | . . . . 2 5 . . . . Allies Corrupted . | . . . . . . . . . . Allies Melted . | . . . . . . . . . . Intel | -11 -10 -10 -10 -9 -8 -7 -7 -6 -5 ------- Run | Yrd Mat Min Exi Min Mat Fac DSF Fac Fac Active Infowar (turns) 1391 | . . . . . . . 203 1188 . Optics 1391 | . . . . . . . 203 1188 . Robot Analysis Total . | . . . . . . . . . . Derelict Logs Recovered . | . . . . . . . . . . Drone Launches . | . . . . . . . . . . Drone Recoveries . | . . . . . . . . . . Exploration | -11 -10 -10 -10 -9 -8 -7 -7 -6 -5 ------------- Run | Yrd Mat Min Exi Min Mat Fac DSF Fac Fac Turns Passed 7143 | 49 1276 364 206 575 576 63 801 3028 205 Spaces Moved 2462 | 24 560 225 127 323 218 34 146 644 161 Core 119 | . . . . . . . . 119 . Treads 2182 | 24 560 225 127 323 218 34 146 525 . Legs 70 | . . . . . . . . . 70 Wheels 91 | . . . . . . . . . 91 Hover . | . . . . . . . . . . Flight . | . . . . . . . . . . Fastest Speed 50 | 160 160 160 160 160 165 165 165 50 97 Average Speed 154 | 160 160 160 160 163 165 165 165 144 113 Slowest Speed 260 | 160 160 160 160 260 165 165 165 170 115 Overloaded Moves . | . . . . . . . . . . Propulsion Burnouts . | . . . . . . . . . . Robots Hopped . | . . . . . . . . . . Potential Cave-ins . | . . . . . . . . . . Cave-ins Triggered . | . . . . . . . . . . Exploration Rate (%) 40 | 3 90 52 48 56 29 2 86 28 8 Regions Visited 9 Branch Regions 3 Pre-discovered Areas 2 | . . 1 1 . . . . . . Known Exits Taken 1 | . . . . . . 1 . . . Unknown Exits Taken 7 | 1 1 1 1 1 1 . . 1 . Scrap Searched . | . . . . . . . . . . Spaces Dug . | . . . . . . . . . . Terrain Destroyed 1339 | . 6 . . 17 268 . 147 864 37 Melee . | . . . . . . . . . . Projectile 3 | . . . . . . . . 3 . AOE 1336 | . 6 . . 17 268 . 147 861 37 Terrain Rammed . | . . . . . . . . . . Walls Destroyed . | . . . . . . . . . . Machines Disabled . | . . . . . . . . . . Actions | -11 -10 -10 -10 -9 -8 -7 -7 -6 -5 --------- Run | Yrd Mat Min Exi Min Mat Fac DSF Fac Fac Total 5235 | 27 825 229 130 364 344 42 664 2433 177 Wait 2249 | . 202 5 4 30 60 2 481 1459 6 Move 2453 | 23 559 224 126 322 217 33 145 643 161 Hop . | . . . . . . . . . . Pick Up 26 | . 2 . . 2 1 2 . 19 . Fast Attach 7 | . . . . . . . 2 5 . Attach 24 | . 2 . . . . . . 19 3 Detach 9 | . . . . . . 1 . 8 . Swap 66 | . 2 . . 6 18 2 12 24 2 Drop 33 | . . . . 1 1 2 3 26 . Fire 316 | 4 58 . . 3 33 . 21 192 5 Melee 49 | . . . . . 14 . . 35 . Ram 1 | . . . . . . . . 1 . Kick . | . . . . . . . . . . Crush 2 | . . . . . . . . 2 . Escape Stasis . | . . . . . . . . . . Rewire . | . . . . . . . . . . Trap . | . . . . . . . . . . Miscellaneous . | . . . . . . . . . . Route ------- -11/Scrapyard -10/Materials (discovered 5 exits: [*Mat x2] / [*Min x2] / [*Sub]) -10/Mines (discovered 3 exits: [*Mat] / *Exi / [*Sub]) -10/Exiles -9/Mines (discovered 2 exits: *Mat x2) -8/Materials -7/Factory -7/DSF -6/Factory -5/Factory History --------- Turn | Location | Event 6 | -11/Scrapyard | Discovered new exit (range 15) 50 | -11/Scrapyard | Entered Materials 264 | -10/Materials | Discovered new exit (range 3) 317 | -10/Materials | Build established: Mutant 576 | -10/Materials | Discovered new exit (range 7) 891 | -10/Materials | Discovered new exit (range 7) 979 | -10/Materials | Discovered new exit (range 14) 1168 | -10/Materials | Discovered new exit (range 8) 1326 | -10/Materials | Entered Mines 1327 | -10/Mines | Learned location of Storage (-7) 1372 | -10/Mines | Met a Derelict bent on vengeance 1571 | -10/Mines | Discovered new exit (range 12) 1602 | -10/Mines | Discovered new exit (range 12) 1613 | -10/Mines | Deemed a non-threat by the Exiles lab entrance 1613 | -10/Mines | Discovered new exit (range 5) 1645 | -10/Mines | Assisted by bots powering up and referring to "LRC-V3" 1690 | -10/Mines | Entered Exiles 1690 | -10/Exiles | Accompanied by 3 allies 1729 | -10/Exiles | Met 8R-AWN 1756 | -10/Exiles | Met EX-HEX 1818 | -10/Exiles | Met EX-DEC 1826 | -10/Exiles | Learned location of Zion (-7) 1873 | -10/Exiles | Discovered new exit (range 14) 1896 | -10/Exiles | Entered Mines 1896 | -9/Mines | Accompanied by 3 allies 1928 | -9/Mines | Found a damaged Exp. Sensor Array with a note attached 1932 | -9/Mines | Found Prototype Device 1933 | -9/Mines | Identified Exp. Sensor Array 1981 | -9/Mines | Received a Rocket Launcher from a helpful Derelict 2206 | -9/Mines | Discovered new exit (range 13) 2243 | -9/Mines | Discovered new exit (range 5) 2345 | -9/Mines | Assembled infested the area 2350 | -9/Mines | Assisted by a Guerilla fighting off Assembled 2471 | -9/Mines | Entered Materials 2471 | -8/Materials | Accompanied by 2 allies 2471 | -8/Materials | Evolved 4 slots: Propulsion x2, Utility x2 2611 | -8/Materials | Destroyed 9 combat bots 2788 | -8/Materials | Discovered new exit (range 3) 2871 | -8/Materials | First assault squad dispatched 2969 | -8/Materials | Destroyed 13 combat bots 3047 | -8/Materials | Entered Factory 3047 | -7/Factory | Evolved 2 slots: Power x1, Utility x1 3110 | -7/Factory | Identified exit to DSF 3110 | -7/Factory | Entered DSF 3215 | -7/DSF | Additional patrols routed to DSF 3819 | -7/DSF | Sterilization system engaged 3839 | -7/DSF | Ambient heat levels rising (+10) 3854 | -7/DSF | Ambient heat levels rising (+10) 3866 | -7/DSF | Discovered new exit (range 22) 3869 | -7/DSF | Ambient heat levels rising (+10) 3884 | -7/DSF | Ambient heat levels rising (+10) 3899 | -7/DSF | Ambient heat levels rising (+10) 3911 | -7/DSF | Entered Factory 3911 | -6/Factory | Evolved 2 slots: Propulsion x1, Utility x1 4261 | -6/Factory | First assault squad dispatched 4563 | -6/Factory | Found Launcher Loader 4820 | -6/Factory | Destroyed 8 combat bots 4916 | -6/Factory | Garrison activated, responded to threat 5051 | -6/Factory | Identified exit to Garrison 6234 | -6/Factory | High security lockdown imminent 6314 | -6/Factory | High security lockdown engaged 6446 | -6/Factory | Lost 3 parts (2u1w) 6460 | -6/Factory | Destroyed 14 combat bots 6549 | -6/Factory | Destroyed 12 combat bots 6744 | -6/Factory | Destroyed 35 combat bots 6765 | -6/Factory | Lost 14 parts (3p1n6u4w) 6864 | -6/Factory | Sterilization system engaged 6864 | -6/Factory | Non-combat units ordered to evacuate 6888 | -6/Factory | Destroyed 17 combat bots 6890 | -6/Factory | Lost 3 parts (1n1u1w) 6932 | -6/Factory | Discovered new exit (range 12) 6937 | -6/Factory | Core integrity fell below 50% 6939 | -6/Factory | Entered another Factory area 6939 | -5/Factory | Evolved 2 slots: Power x1, Utility x1 7144 | -5/Factory | Self-destructed Last Messages --------------- [You open your loot box...] [Congratulations on your very own Biometal Leg!] 06996_ Fusion Modulator explodes. 06996_ Nuclear Reactor explodes. 06996_ Destroyed Wheel. 06996_ T-07 Excavator destroyed. 06996_ Nuclear Reactor explodes. [Purchased: Ovr. Scrapsphere] 07034_ Neutrino Reactor explodes. [Purchased: Arm. Huge Wheel] 07052_ Ovr. Scrapsphere suddenly begins malfunctioning. 07065_ Connecting with Terminal... 07065_ Current location identified: Factory 07090_ Ovr. Scrapsphere recovered from malfunction. 07137_ Penetrated by Slug. 07140_ ALERT: All DSF locations entering lockdown mode. 07140_ K-01 Serf cleans the Fabricator. Map ----- +----------------------------------------------------+ | ???? #????????????????????????????????????? | | ????"" """ #????????????????????????????????????? | | ?? """ """ #????????????????????????????????????? | | ?? """ """ #######??????????????????????????????? | | ?? # #??????????????????????????????? | | """ """ # #??????????????????????????????? | | """ """ + #??????????????????????????????? | | """ """ # #########??????????????????????? | | # # #??????????????????????? | | # # #??????????????????????? | | #########+### # #??????????????????????? | | ?????# # """ #??????????????????????? | | ??#### # """"" #??? ??????????????????? | | ??# + """"" #?? "??????????????????? | | ### # #?? "??????????????????? | | # """ #?? "??????????????????? | | """ # """"" #?? ?? ???????????????? | | """ ^^ # """"" #? ? ???????????????? | | """ # #? "" "" """???????????? | | """ # """ #? "F "" """ ??????????? | | # """"" #? """"" ??????????? | | # """"" ? k ???????????? | | # ?? ??????????????? | | ### ## # ??? #????????????????? | | ??# ## ######### #????????????????? | | ??# ## k @s #????????????????? | | ??# ## sss #????????????????? | | ###+## #????????????????? | | + #????????????????? | | # #????????????????? | | # ################ #????????????????? | | # #??????????????? #????????????????? | | # ????????????????? #????????????????? | | # ?????????????????? #????????????????? | | # ??????????????????? #????????????????? | | #????????????????????? #????????????????? | | #????????????????????? #????????????????? | | #????????????????????? #????????????????? | | #?????????????????????? #????????????????? | | #?????????????????????? ????????????????? | | #"####?????????????????????? ??????????????????? | | # #????????????????????????? ????????????????????? | | # #??? ????????????????????????????????????????? | | # #??# ?#?????????????????????????????????????? | | # #??# # ???????????????????????????????????? | | # #### ????????????????????????????????? | | ????????????????????????????????? | | ????????????????????????????????? | | """ ????????????????????????????????? | | "F" """ ?????????????????????????????? | +----------------------------------------------------+ Best States ------------- Heat Dissipation 71 Energy Generation 39 Energy Capacity 900 Matter Stores 300 Matter Capacity 300 Sight Range 22 Terrain Scan Density 10 Armor Coverage 600 Resistance: EX 25 Evasion (%) 55 Recoil Reduction 5 Matter Filtering 30 Item Schematics ----------------- None Robot Schematics ------------------ None Fabricated ------------ Nothing Repaired ---------- Nothing Studied --------- None Alien Tech Used ----------------- None Achievements -------------- Besieged Boltbath Hammer Time Into The Furnace Challenges ------------ None Cogshop Purchases (67) ------------------------ Spk. Treads (874) Spk. Treads (874) Hvy. Ion Engine (699) Shotgun (699) Shotgun (699) Shield Generator (699) Med. Armor Plating (681) Shield Generator (767) Rocket Launcher (995) Lrg. Matter Pod (442) Lgt. Treads (641) Arm. Treads (891) Arm. Treads (891) Shock Absorption System (749) Hrd. Medium Armor Plating (648) Power Maul (899) Hpw. Tractor Beam (767) Hrd. Medium Armor Plating (693) Hvy. Rocket Launcher (1155) Force Rifle (788) Force Rifle (788) Matter Filter (881) F-cell Engine (1161) F-cell Engine (1161) Force Field (980) Force Field (980) Imp. Cooling System (1166) Adv. Treads (1032) Enh. Optical Array (936) Enh. Coil Gun (Loot Box) Arm. Medium Treads (1460) Launcher Loader (904) Lyr. Heavy Armor Plating (1208) Arm. Medium Treads (1921) Force Field (993) Arm. Medium Treads (1818) Arm. Medium Treads (1980) Hvy. Rocket Launcher (1488) System Restoration Module (812) Hvy. Rocket Launcher (1740) Neutrino Core (785) Antimatter Reactor (Loot Box) Enh. Armored Leg (Loot Box) Arm. Leg (Loot Box) Dispersion Rifle (Loot Box) Cld. Phase Cannon (Loot Box) Imp. Kinecellerator (Loot Box) Exp. Matter Compressor (Loot Box) Lrn. Tractor Beam (976) Matter Filter (799) Lyr. Heavy Armor Plating (1434) Adv. Cooling System (1196) Hvy. Treads (2079) Hvy. Rocket Launcher (1689) Hvy. Rocket Launcher (1689) Lyr. Heavy Armor Plating (1423) Fusion Compressor (694) Adv. Cooling System (624) Hvy. Rocket Launcher (1985) Force Field (567) Force Field (567) Myomer Leg (Loot Box) Cold Fusion Reactor (Loot Box) Linear Accelerator (Loot Box) Biometal Leg (Loot Box) Ovr. Scrapsphere (804) Arm. Huge Wheel (905) Game ------ Seed BeamTechClaymores Manual? 0 Play Time 01:33:35 Cumulative 148.3 hours Start 2026.07.19 @ 17:58:06 End 2026.07.19 @ 19:36:22 Sessions 1 Manual Loads 0 Difficulty Rogue Special Mode AFD2019/Pay2Buy Game No. 103 Rogue 103 Adventurer 0 Explorer 0 Win Type - Total 2 Types 1/0/0/1/0/0/0/0/0/0 Lore% 49 Gallery% 58 Achievement% 54 Wizard Run 0 Options --------- Layout 2 ASCII 0 Keyboard 0 Movement Mouse Keybinds 0 Fullscreen 1 Font 48/Smallcaps Map View 50x44 Zoom Use 0% Tactical HUD 1 Map Filters NONE Filters NONE Steam 1 RUN: 54dfda3c-ae9b-4239-b77d-2918015548a9